Cogmind - Beta 13 *** ADVENTURER MODE // 2024.05.31 @ 15:48:47 Player: XO-OCH Result: Self-destructed Performance ------------- Evolutions (5) 2500 Regions Visited (8) 1600 Robots Destroyed (29) 145 Value Destroyed (975) 975 Prototype IDs (23) 460 Alien Tech Used (0) 0 Bonus (288) 288 TOTAL SCORE: 5968 Bonus ------- Aligned with FarCom 300 Friendly Fire -12 Cogmind --------- Core Integrity 918/1000 Matter 291/300 Energy 480/480 System Corruption 2% Temperature Warm (114) Movement Walking (120) Location -5/Factory Parts ------- > --- POWER (2) -------- Improved Deuterium Engine Improved Deuterium Engine > --- PROPULSION (3) --- Carbon-fiber Leg Carbon-fiber Leg Carbon-fiber Leg > --- UTILITY (8) ------ Improved Coolant Injector Small Storage Unit Structural Scanner Advanced Signal Interpreter Advanced Terrain Scan Processor Advanced Targeting Computer Improved Medium Armor Plating Hacking Suite > --- WEAPON (4) ------- Plasma Cannon Improved Remote Datajack > --- INVENTORY (8) ---- Improved Titanium Leg Improved Titanium Leg Improved Titanium Leg Mining Laser Deploy-a-Sentry Peak State ------------ > --- POWER ------------ Improved Deuterium Engine Improved Deuterium Engine > --- PROPULSION ------- Carbon-fiber Leg Carbon-fiber Leg Carbon-fiber Leg > --- UTILITY ---------- Improved Coolant Injector Small Storage Unit Structural Scanner Advanced Signal Interpreter Advanced Terrain Scan Processor Advanced Targeting Computer Improved Medium Armor Plating Hacking Suite > --- WEAPON ----------- Medium Laser Medium Laser Plasma Cannon Improved Remote Datajack > --- INVENTORY -------- Improved Titanium Leg Improved Titanium Leg Improved Titanium Leg Mining Laser Deploy-a-Sentry [Rating: 58] Favorites ----------- Power Improved Deuterium Engine Engine Improved Deuterium Engine Propulsion Carbon-fiber Leg Treads Light Treads Leg Carbon-fiber Leg Utility Small Storage Unit Device Structural Scanner Storage Small Storage Unit Processor Signal Interpreter Hackware Hacking Suite Protection Improved Medium Armor Plating Weapon Medium Laser Energy Gun Medium Laser Energy Cannon Plasma Cannon Ballistic Gun Light Assault Rifle Launcher Grenade Launcher Special Weapon Mining Laser Build | -11 -10 -10 -10 -9 -8 -7 -6 -5 ------- Run | Yrd Mat Min Exi Min Mat Fac Fac Fac Slots Evolved 10 | . . . . . 4 2 2 2 Power 1 | . . . . . . . 1 . Propulsion 1 | . . . . . 1 . . . Utility 6 | . . . . . 2 2 1 1 Weapon 2 | . . . . . 1 . . 1 Parts Attached 52 | 1 10 2 . . 22 3 . 14 Power 4 | . 1 . . . 1 1 . 1 Engine 4 | . 1 . . . 1 1 . 1 Core . | . . . . . . . . . Reactor . | . . . . . . . . . Propulsion 7 | . 2 . . . 5 . . . Treads 1 | . . . . . 1 . . . Leg 6 | . 2 . . . 4 . . . Wheel . | . . . . . . . . . Hover . | . . . . . . . . . Flight . | . . . . . . . . . Utility 10 | . 2 . . . 2 2 . 4 Device 4 | . 2 . . . 1 . . 1 Storage . | . . . . . . . . . Processor 4 | . . . . . 1 1 . 2 Hackware 1 | . . . . . . 1 . . Protection 1 | . . . . . . . . 1 Artifact . | . . . . . . . . . Weapon 31 | 1 5 2 . . 14 . . 9 Energy Gun 12 | 1 1 1 . . 5 . . 4 Energy Cannon 1 | . . . . . . . . 1 Ballistic Gun . | . . . . . . . . . Ballistic Cannon . | . . . . . . . . . Launcher 8 | . 3 1 . . 3 . . 1 Special Weapon 10 | . 1 . . . 6 . . 3 Impact Weapon . | . . . . . . . . . Slashing Weapon . | . . . . . . . . . Piercing Weapon . | . . . . . . . . . Special Melee Weapon . | . . . . . . . . . Unidentified Prototypes . | . . . . . . . . . Parts Lost 3 | . . . . . . . . 3 Power . | . . . . . . . . . Propulsion . | . . . . . . . . . Utility . | . . . . . . . . . Weapon 3 | . . . . . . . . 3 Highest Loss Streak 2 | . . . . . . . . 2 To Critical Strikes . | . . . . . . . . . Average Slot Usage (%) 97 | . 95 100 100 100 99 97 80 95 Engine 10 | . 14 14 14 14 9 7 6 11 Leg 22 | . 28 28 28 28 24 23 20 17 Device 13 | . 10 14 14 14 18 14 6 10 Storage 8 | . 14 14 14 14 9 7 6 5 Processor 9 | . . . . . 9 12 13 17 Hackware 2 | . . . . . . 7 6 5 Energy Gun 15 | . 16 14 14 14 15 15 13 16 Launcher 6 | . 12 14 14 14 7 . . 2 Special Weapon 2 | . . . . . 3 7 6 . Naked Turns . | . . . . . . . . . Heaviest Build 49 | 14 19 19 19 19 24 23 21 49 Greatest Support 45 | 20 26 26 26 26 45 45 45 45 Greatest Overweight (x) 1 | . . . . . . . . 1 Average Overweight (x) . | . . . . . . . . . Largest Inventory Capacity 8 | 8 8 8 8 8 8 8 8 8 Average Capacity 8 | 8 8 8 8 8 8 8 8 8 Most Carried 8 | 6 8 8 8 8 8 8 8 7 Average Carried 6 | 6 7 8 7 8 6 7 8 5 Final Capacity 8 | 8 8 8 8 8 8 8 8 8 Final Carried 8 | 6 8 8 8 8 7 8 8 5 Class Distribution -------------------- 45% | Hacker-Skirmisher 28% | Mutant 26% | Skirmisher Dominant Class ---------------- Mutant | -10/Materials Mutant | -10/Mines Mutant | -10/Exiles Mutant | -9/Mines Skirmisher | -8/Materials Hacker-Skirmisher | -7/Factory Hacker-Skirmisher | -6/Factory Hacker-Skirmisher | -5/Factory Resources | -11 -10 -10 -10 -9 -8 -7 -6 -5 ----------- Run | Yrd Mat Min Exi Min Mat Fac Fac Fac Matter Collected 849 | 210 50 69 . 31 46 . 74 369 Remotely . | . . . . . . . . . Salvage Created 918 | . 50 56 . 77 287 . . 448 Parts 42 | . . 7 . 3 16 . . 16 Haulers Intercepted . | . . . . . . . . . Recyclers Shooed . | . . . . . . . . . Parts Field Recycled . | . . . . . . . . . Retrieved Matter . | . . . . . . . . . Parts Self-Destructed . | . . . . . . . . . Prevented . | . . . . . . . . . Kills | -11 -10 -10 -10 -9 -8 -7 -6 -5 ------- Run | Yrd Mat Min Exi Min Mat Fac Fac Fac Combat Hostiles Destroyed 26 | . 1 5 . 3 8 . . 9 Guns 8 | . 1 1 . 1 4 . . 1 Cannons 2 | . . . . . . . . 2 AOE 12 | . . 4 . 2 2 . . 4 Classes Destroyed 8 | . 1 1 . 1 3 . . 2 Recycler 2 | . . . . . 1 . . 1 Watcher 1 | . . . . . . . . 1 Swarmer 12 | . . 3 . . 3 . . 6 Grunt 7 | . 1 2 . 2 2 . . . Brawler 1 | . . . . 1 . . . . Sentry 3 | . . . . . 2 . . 1 Hunter 1 | . . . . . 1 . . . Programmer 2 | . . . . . . . . 2 Best Kill Streak 5 | . 1 3 . 3 5 . . 5 Combat Bots Only 5 | . 1 3 . 3 4 . . 5 Max Kills in Single Turn 3 | . 1 3 . 1 2 . . 2 Gunslinging 1 | . . . . . 1 . . . Exploded 3 | . . 3 . 1 1 . . 2 Melee . | . . . . . . . . . Uniques/NPCs Destroyed . | . . . . . . . . . Combat | -11 -10 -10 -10 -9 -8 -7 -6 -5 -------- Run | Yrd Mat Min Exi Min Mat Fac Fac Fac Hostile Shots Fired 126 | . 6 8 . 9 40 . . 63 Missed 37 | . . 1 . 6 13 . . 17 Damage Taken 1140 | . 51 56 . 71 275 . 23 664 Core 177 | . 34 . . . 61 . . 82 Absorbed by Shields 152 | . . 21 . 29 102 . . . Ignored by Resistances 372 | . 16 23 . 29 108 . 6 190 Regen/Repaired (Parts) 43 | . . . . . 43 . . . Core Remaining (%) 94 | 100 . . . 86 88 100 100 . Volleys Fired 89 | . 5 5 . 9 45 3 . 22 Largest 4 | . 2 2 . 1 2 1 . 4 Hottest 235 | . 100 100 . 50 100 100 . 235 Shots Fired 145 | . 9 6 . 9 56 3 . 62 Gun 84 | . 8 2 . 5 22 . . 47 Cannon 12 | . . . . . . . . 12 Launcher 15 | . . 4 . 4 5 . . 2 Special 34 | . 1 . . . 29 3 . 1 Kinetic . | . . . . . . . . . Thermal 119 | . 9 2 . 5 51 3 . 49 Explosive 15 | . . 4 . 4 5 . . 2 Electromagnetic 11 | . . . . . . . . 11 Robot Hit Streak 17 | . 5 6 . 7 12 . . 17 Robot Miss Streak 3 | . 1 . . 1 1 . . 3 Penetration Max . | . . . . . . . . . Secondary Targets 3 | . . . . . 3 . . . Max Gunslinging Chain 1 | . . . . . 1 . . . Shots Hit Robots 86 | . 6 5 . 6 24 . . 45 Core Hits 51 | . 2 8 . 6 15 . . 20 Critical Kills . | . . . . . . . . . Critical Parts Destroyed . | . . . . . . . . . Critical Strikes 8 | . 1 . . 1 4 . . 2 Burn 8 | . 1 . . 1 4 . . 2 Melee Attacks . | . . . . . . . . . Impact . | . . . . . . . . . Slashing . | . . . . . . . . . Piercing . | . . . . . . . . . Sneak Attacks . | . . . . . . . . . Combat Hostiles . | . . . . . . . . . Follow-up Attacks . | . . . . . . . . . Damage Inflicted 2220 | . 75 278 . 290 563 . . 1014 Guns 888 | . 75 13 . 50 237 . . 513 Cannons 263 | . . . . . . . . 263 Explosions 1069 | . . 265 . 240 326 . . 238 Melee . | . . . . . . . . . Ramming . | . . . . . . . . . Kinetic . | . . . . . . . . . Thermal 1000 | . 75 13 . 50 237 . . 625 Explosive 1069 | . . 265 . 240 326 . . 238 Electromagnetic 151 | . . . . . . . . 151 Impact . | . . . . . . . . . Slashing . | . . . . . . . . . Piercing . | . . . . . . . . . Highest Corruption 2 | . . . . . . . 1 2 Average Corruption 1 | . . . . . . . 1 1 Corruption Purged . | . . . . . . . . . Corruption Blocked . | . . . . . . . . . Effects 2 | . . . . . . . . 2 Message Errors 1 | . . . . . . . . 1 Matter Fused 1 | . . . . . . . . 1 Overload Shots . | . . . . . . . . . Overflow Damage 5 | . . . . . 4 . . 1 Projectiles 1 | . . . . . . . . 1 Explosions 4 | . . . . . 4 . . . Melee . | . . . . . . . . . Knockbacks . | . . . . . . . . . Impact . | . . . . . . . . . Kinetic . | . . . . . . . . . Secondary . | . . . . . . . . . Self-Inflicted Damage 183 | . . 7 . 51 82 . . 43 Shots 9 | . . 1 . 3 3 . . 2 Rammed . | . . . . . . . . . Targets Rammed . | . . . . . . . . . Kicked . | . . . . . . . . . Crushed . | . . . . . . . . . Highest Temperature 194 | . 186 42 . 60 139 . . 194 Average Temperature 80 | . 84 14 . 31 70 . . 95 Received Heat Transfer 180 | . 36 34 . 4 79 . . 27 Siege Activations . | . . . . . . . . . Robots Corrupted . | . . . . . . . . . Combat Hostiles . | . . . . . . . . . Parts Fried . | . . . . . . . . . Impact Corruptions . | . . . . . . . . . Robots Melted 4 | . . . . . 2 . . 2 Combat Hostiles 4 | . . . . . 2 . . 2 Parts Melted 11 | . 2 . . 1 2 . . 6 Heat Transferred 3151 | . 296 37 . 222 999 . . 1597 Parts Sabotaged . | . . . . . . . . . Parts Stolen . | . . . . . . . . . Parts Stripped . | . . . . . . . . . Power Chain Reactions . | . . . . . . . . . Alert | -11 -10 -10 -10 -9 -8 -7 -6 -5 ------- Run | Yrd Mat Min Exi Min Mat Fac Fac Fac Peak Influence 350 | . 73 189 . 106 350 69 . 133 Initial 60 | . . 23 . . 34 60 . . Average 80 | . 21 123 . 100 157 50 . 35 Maximum Alert Level 1 | . . . . . 1 . . . Low Security (%) 90 | 100 100 100 . 100 67 100 100 100 Level 1 9 | . . . . . 32 . . . Level 2 . | . . . . . . . . . Level 3 . | . . . . . . . . . Level 4 . | . . . . . . . . . Level 5 . | . . . . . . . . . High Security . | . . . . . . . . . Max Security . | . . . . . . . . . Squads Dispatched 4 | . . . . . 3 . . 1 Investigation . | . . . . . . . . . Extermination 1 | . . . . . . . . 1 Reinforcement 3 | . . . . . 3 . . . Assault . | . . . . . . . . . Garrison . | . . . . . . . . . Intercept . | . . . . . . . . . Searches Triggered . | . . . . . . . . . Construction Impeded 1 | . . . . . 1 . . . Haulers Reinforced . | . . . . . . . . . Active Scanning Responses . | . . . . . . . . . Cargo Convoy Interrupts . | . . . . . . . . . Stealth | -11 -10 -10 -10 -9 -8 -7 -6 -5 --------- Run | Yrd Mat Min Exi Min Mat Fac Fac Fac Distress Signals 1 | . 1 . . . . . . . Communications Jammed . | . . . . . . . . . Distress Signals . | . . . . . . . . . Times Spotted 37 | . 3 2 . 3 13 . . 16 Peak Tracking Total 6 | . 3 2 . 3 5 . 1 6 Tactical Retreats 2 | . 1 . . . . . . 1 Traps | -11 -10 -10 -10 -9 -8 -7 -6 -5 ------- Run | Yrd Mat Min Exi Min Mat Fac Fac Fac Traps Triggered 1 | . . . . . . . 1 . Indirectly . | . . . . . . . . . Trap Hack Attempts . | . . . . . . . . . Triggered . | . . . . . . . . . Disarmed . | . . . . . . . . . Reprogrammed . | . . . . . . . . . Reused . | . . . . . . . . . Traps Extracted . | . . . . . . . . . Installed . | . . . . . . . . . Triggered . | . . . . . . . . . Machines | -11 -10 -10 -10 -9 -8 -7 -6 -5 ---------- Run | Yrd Mat Min Exi Min Mat Fac Fac Fac Machines Disabled 5 | . . 1 . . 3 . . 1 Max in Single Turn 2 | . . 1 . . 2 . . 1 Machines Repaired . | . . . . . . . . . Machines Dismantled . | . . . . . . . . . Machines Sabotaged . | . . . . . . . . . Overloaded Fab Kills . | . . . . . . . . . Hacking | -11 -10 -10 -10 -9 -8 -7 -6 -5 --------- Run | Yrd Mat Min Exi Min Mat Fac Fac Fac Machines Accessed 14 | . 2 . 1 . 5 2 1 3 Terminals 8 | . 2 . . . 4 1 . 1 Fabricators 1 | . . . . . . . . 1 Repair Stations 3 | . . . . . 1 . 1 1 Recycling Units 1 | . . . . . . 1 . . Scanalyzers . | . . . . . . . . . Garrison Access . | . . . . . . . . . Total Hacks 33 | . 3 . 1 . 12 12 1 4 Successful 19 | . 1 . 1 . 7 9 . 1 Failed 14 | . 2 . . . 5 3 1 3 Catastrophic 2 | . 1 . . . . . . 1 Database Lockouts . | . . . . . . . . . Manual 18 | . 2 . 1 . 8 5 . 2 Terminals 19 | . 3 . . . 10 5 . 1 Fabricators 1 | . . . . . . . . 1 Repair Stations 5 | . . . . . 2 . 1 2 Recycling Units 7 | . . . . . . 7 . . Scanalyzers . | . . . . . . . . . Garrison Access . | . . . . . . . . . Terminal Hacks 9 | . 1 . 1 . 5 2 . . Record 1 | . . . . . 1 . . . Level Access Points 1 | . . . . . 1 . . . Branch Access Points 1 | . 1 . . . . . . . Scanalyzer Index 1 | . . . . . 1 . . . Locate Traps 2 | . . . . . 1 1 . . Zone Layout 2 | . . . . . 1 1 . . Derelict Proto ID Bank 1 | . . . 1 . . . . . Fabricator Hacks . | . . . . . . . . . Repair Station Hacks 3 | . . . . . 2 . . 1 Scan Component 2 | . . . . . 1 . . 1 Repair 1 | . . . . . 1 . . . Recycling Unit Hacks 6 | . . . . . . 6 . . Recycle Component 1 | . . . . . . 1 . . Process 1 | . . . . . . 1 . . Report Inventory 1 | . . . . . . 1 . . Retrieve Matter 2 | . . . . . . 2 . . Retrieve Components 1 | . . . . . . 1 . . Scanalyzer . | . . . . . . . . . Garrison Access Hacks . | . . . . . . . . . Unauthorized Hacks 1 | . . . . . . 1 . . Terminals 1 | . . . . . . 1 . . Botnet 1 | . . . . . . 1 . . Fabricators . | . . . . . . . . . Repair Stations . | . . . . . . . . . Recycling Units . | . . . . . . . . . Scanalyzers . | . . . . . . . . . Garrison Access . | . . . . . . . . . Data Cores Recovered . | . . . . . . . . . Used . | . . . . . . . . . Hacking Detections 10 | . 1 . . . 3 2 1 3 Full Trace Events . | . . . . . . . . . Feedback Events . | . . . . . . . . . Feedback Blocked . | . . . . . . . . . Robot Schematics Acquired . | . . . . . . . . . Robots Built . | . . . . . . . . . Authchips . | . . . . . . . . . Time . | . . . . . . . . . Total Robot Build Rating . | . . . . . . . . . Part Schematics Acquired . | . . . . . . . . . Parts Built . | . . . . . . . . . Authchips . | . . . . . . . . . Time . | . . . . . . . . . Total Part Build Rating . | . . . . . . . . . Parts Repaired 1 | . . . . . 1 . . . Time 26 | . . . . . 26 . . . Parts Recycled 1 | . . . . . . 1 . . Recycled Matter 6 | . . . . . . 6 . . Retrieved Matter 6 | . . . . . . 6 . . Retrieved Components 1 | . . . . . . 1 . . Parts Scanalyzed . | . . . . . . . . . Part Schematics Acquired . | . . . . . . . . . Parts Damaged . | . . . . . . . . . Bothacking | -11 -10 -10 -10 -9 -8 -7 -6 -5 ------------ Run | Yrd Mat Min Exi Min Mat Fac Fac Fac Used RIF Installer . | . . . . . . . . . Robots Hacked . | . . . . . . . . . Non-combat . | . . . . . . . . . Combat . | . . . . . . . . . Robot Hacks Applied . | . . . . . . . . . Relay Couplers Released . | . . . . . . . . . Fabnet Peak Effective % . | . . . . . . . . . Robots Rewired . | . . . . . . . . . Allies Hacked . | . . . . . . . . . Hacks Repelled . | . . . . . . . . . Allies | -11 -10 -10 -10 -9 -8 -7 -6 -5 -------- Run | Yrd Mat Min Exi Min Mat Fac Fac Fac Total Allies . | . . . . . . . . . Largest Group . | . . . . . . . . . Highest-Rated Group . | . . . . . . . . . Highest-Rated Ally . | . . . . . . . . . Total Orders . | . . . . . . . . . Ally Attacks . | . . . . . . . . . Total Damage . | . . . . . . . . . Kills . | . . . . . . . . . Allies Corrupted . | . . . . . . . . . Allies Melted . | . . . . . . . . . Turrets Deployed 1 | . . . 1 . . . . . Intel | -11 -10 -10 -10 -9 -8 -7 -6 -5 ------- Run | Yrd Mat Min Exi Min Mat Fac Fac Fac Robot Analysis Total . | . . . . . . . . . Derelict Logs Recovered 2 | . . . . 2 . . . . Drone Launches . | . . . . . . . . . Drone Recoveries . | . . . . . . . . . Exploration | -11 -10 -10 -10 -9 -8 -7 -6 -5 ------------- Run | Yrd Mat Min Exi Min Mat Fac Fac Fac Turns Passed 3624 | 10 284 182 247 297 968 529 115 992 Spaces Moved 2245 | 7 200 138 205 220 459 375 95 546 Core . | . . . . . . . . . Treads . | . . . . . . . . . Legs 2245 | 7 200 138 205 220 459 375 95 546 Wheels . | . . . . . . . . . Hover . | . . . . . . . . . Flight . | . . . . . . . . . Fastest Speed 120 | 120 120 120 120 120 120 120 120 120 Average Speed 123 | 120 120 120 120 120 120 120 120 135 Slowest Speed 190 | 120 120 120 120 120 120 120 120 190 Overloaded Moves . | . . . . . . . . . Propulsion Burnouts . | . . . . . . . . . Robots Hopped . | . . . . . . . . . Cave-ins Triggered . | . . . . . . . . . Exploration Rate (%) 29 | 1 39 29 59 57 52 13 4 15 Regions Visited 8 Branch Regions 3 Pre-discovered Areas . | . . . . . . . . . Known Exits Taken 4 | . 1 . . . 1 1 1 . Unknown Exits Taken 4 | 1 . 1 1 1 . . . . Scrap Searched 1 | . . 1 . . . . . . Spaces Dug 29 | . 1 . . . 28 . . . Terrain Destroyed 142 | . 1 26 . 27 81 . . 7 Melee . | . . . . . . . . . Projectile 29 | . 1 . . . 28 . . . AOE 113 | . . 26 . 27 53 . . 7 Terrain Rammed . | . . . . . . . . . Walls Destroyed . | . . . . . . . . . Machines Disabled . | . . . . . . . . . Actions | -11 -10 -10 -10 -9 -8 -7 -6 -5 --------- Run | Yrd Mat Min Exi Min Mat Fac Fac Fac Total 2886 | 8 234 147 206 244 755 448 96 748 Wait 458 | 1 7 3 . 16 218 51 2 160 Move 2237 | 6 199 137 204 219 458 374 94 546 Hop . | . . . . . . . . . Pick Up 30 | . 6 . 1 . 8 10 . 5 Fast Attach 1 | . 1 . . . . . . . Attach 14 | . . . . . 5 2 . 7 Detach . | . . . . . . . . . Swap 37 | 1 9 2 . . 17 1 . 7 Drop 20 | . 7 . 1 . 4 7 . 1 Fire 89 | . 5 5 . 9 45 3 . 22 Melee . | . . . . . . . . . Ram . | . . . . . . . . . Kick . | . . . . . . . . . Crush . | . . . . . . . . . Escape Stasis . | . . . . . . . . . Rewire . | . . . . . . . . . Trap . | . . . . . . . . . Miscellaneous . | . . . . . . . . . Route ------- -11/Scrapyard -10/Materials (discovered 2 exits: *Min x2) -10/Mines (discovered 2 exits: [*Mat] / *Exi) -10/Exiles -9/Mines -8/Materials (discovered 3 exits: *Fac x3) -7/Factory -6/Factory -5/Factory History --------- Turn | Location | Event 1 | -11/Scrapyard | Discovered new exit (range 3) 11 | -11/Scrapyard | Entered Materials 228 | -10/Materials | Identified exit to Mines 295 | -10/Materials | Entered Mines 318 | -10/Mines | Build established: Mutant 444 | -10/Mines | Discovered new exit (range 12) 472 | -10/Mines | Deemed a non-threat by the Exiles lab entrance 472 | -10/Mines | Discovered new exit (range 5) 477 | -10/Mines | Entered Exiles 505 | -10/Exiles | Met 8R-AWN 528 | -10/Exiles | Met EX-HEX 564 | -10/Exiles | Met EX-BIN 577 | -10/Exiles | Aligned with FarCom system 578 | -10/Exiles | Given EX-Vault access code 606 | -10/Exiles | Opened EX-Vault 613 | -10/Exiles | DAS Turret deployed 614 | -10/Exiles | Found Deploy-a-Sentry 637 | -10/Exiles | Warned to stay clear of 0b10 Research branches 656 | -10/Exiles | Exiles lab attacked by MAIN.C 714 | -10/Exiles | Discovered new exit (range 10) 724 | -10/Exiles | Left Exiles lab with Deploy-a-Sentry 724 | -10/Exiles | Entered Mines 760 | -9/Mines | Assembled infested the area 816 | -9/Mines | Learned Materials garrison access intel 836 | -9/Mines | Learned Materials trap positions 1006 | -9/Mines | Found a damaged Exp. Sensor Array with a note attached 1006 | -9/Mines | Discovered new exit (range 13) 1021 | -9/Mines | Entered Materials 1021 | -8/Materials | Evolved 4 slots: Propulsion x1, Utility x2, Weapon x1 1022 | -8/Materials | Loaded intel: 18 trap records 1023 | -8/Materials | Loaded intel: 1 garrison access location 1155 | -8/Materials | Repaired Grenade Launcher 1450 | -8/Materials | Build established: Skirmisher 1709 | -8/Materials | Identified exit to Factory 1989 | -8/Materials | Entered Factory 1989 | -7/Factory | Evolved 2 slots: Utility x2 2292 | -7/Factory | Build established: Hacker-Skirmisher 2495 | -7/Factory | Discovered new exit (range 7) 2503 | -7/Factory | Identified exit to Factory 2518 | -7/Factory | Entered another Factory area 2518 | -6/Factory | Evolved 2 slots: Power x1, Utility x1 2625 | -6/Factory | Discovered new exit (range 8) 2632 | -6/Factory | Identified exit to Factory 2633 | -6/Factory | Entered another Factory area 2633 | -5/Factory | Evolved 2 slots: Utility x1, Weapon x1 3625 | -5/Factory | Self-destructed Last Messages --------------- 03500_ Destroyed Tesla Rifle. 03500_ P-70 Sage critical meltdown. 03500_ Imp. Heat Sink melted. 03500_ Imp. Remote Datajack melted. 03500_ Mic. Fission Core melted. 03500_ Imp. Target Analyzer melted. 03503_ K-01 Serf cleans the Fusion Modulator. 03506_ P-70 Sage destroyed. 03510_ Acquired 60 matter. 03512_ Acquired 13 matter. 03515_ Acquired Imp. Remote Datajack. 03517_ YRV9DIQBMLJEGY4LM7L8& 03558_ Connecting with Terminal... 03594_ C-30 ARC bursts open, deploying its payload. 03594_ S-27 Virus unfolds itself. 03599_ S-27 Virus destroyed. 03601_ Med. Laser destroyed. 03606_ System corrupted: Matter fused (-9). 03619_ Destroyed VTOL Module. 03625_ Med. Laser destroyed. Map ----- +----------------------------------------------------+ | ?????????????????????????????????????????????????? | | ?????????????????????????????????????????????????? | | ?????????????????????????????????????????????????? | | ?????????????????????????????????????????????????? | | ?????????????????????????????????????????????????? | | ?????????????????????????????????????????????????? | | ?????????????????????????????????????????????????? | | ?????????????????????????????????????????????????? | | ?????????????????????????????????????????????????? | | ?????????????????????????????????????????????????? | | ?????????????????????????????????????????????????? | | ?????????????????????????????????????????????????? | | ??????????????? ???????????????????????????????? | | ?????????## ? ???????????????????????????????? | | ????????? # ???????????????????????????????? | | ????????? # ???????????????????????????????? | | ????????? # ???????????????????????????????? | | ????????? + + ?????????????????????? | | ????????? # ##+#######?????????????????????? | | ????????? # # [ # ?????????????????????? | | ????????? # # # ??????????? ##???????? | | ?????????## # | # ??????????? ##???????? | | ########### # # ??????????? ##???????? | | ########### # " " "s# ??????????? ##???????? | | # " " " # ?????????? ##???????? | | # " " "@# ?????????? ##???????? | | """ """ """ + " " " # ????????? ###??????? | | ! """ """ """ # " " " ##????????? #### ????? | | """ """ """ # " " " ########## ### | | # " " "s########## "%" ? | | """ """ """ # " " " + =%[* T ? | | ## """ """ """ ## " " " ########## ? | | # """ """ """ ## ########## ########? | | # [% ## ##????????##+##########? | | !# """ """ !!] ## "T" ##???????? ??????? | | # """ """ !!] ## ##?????????????????????? | | =+ """ """ !]] ###########?????????????????????? | | # # ###?????????????????????? | | # # ##??????????????????????? | | !# ### # ########## ?????????????? | | ########### # """########## ?????????????? | | ## + + """# ""G"" # ?????????????? | | ## # # """# "" "" # ?????????????? | | ## # # # # ?????????????? | | ### # # """# /!! # ?????????????? | | ### # # """# /! # ###### | | ?## ? # # ? """# /! """ ################ | | ?## ? # # ? # """ ####T ### | | ?## ?? # ##?###### """ + + | | ?## ?? # ######### # # | +----------------------------------------------------+ Best States ------------- Heat Dissipation 40 Coolant Potential 80 Energy Generation 27 Energy Capacity 480 Matter Stores 300 Matter Capacity 300 Sight Range 16 Terrain Scan Density 210 Armor Coverage 225 Resistance: KI 20 Resistance: TH 20 Resistance: EX 20 Resistance: EM 20 Resistance: I 20 Resistance: S 20 Resistance: P 20 Evasion (%) 55 Targeting Accuracy 8 Offensive Hacking 20 Item Schematics ----------------- None Robot Schematics ------------------ None Fabricated ------------ Nothing Alien Tech Used ----------------- None Achievements -------------- None Challenges ------------ None Game ------ Seed StasisWarpInsulator Manual? 0 Play Time 01:11:21 Cumulative 31.4 hours Start 2024.05.31 @ 13:23:33 End 2024.05.31 @ 15:48:47 Sessions 1 Manual Loads 0 Difficulty Adventurer Special Mode None Game No. 46 Rogue 0 Adventurer 46 Explorer 0 Win Type - Total 0 Types 0/0/0/0/0/0/0/0/0 Lore% 25 Gallery% 20 Achievement% 19 Wizard Run 0 Options --------- Layout 0 ASCII 0 Keyboard 0 Movement Numpad Keybinds 0 Fullscreen 1 Font 36/Smallcaps Map View 76x50 Zoom Use 0% Tactical HUD 1 Map Filters NONE Filters NONE Steam 1 RUN: d74ddb7d-038b-4da3-adae-c0e51c22cfe6